bitfinex/quotes_ETHUSD_20240614
["timestamp","ask_amount","ask_price","bid_price","bid_amount"]
[1718338466212,0.668,3494.4,3494.3,0.2065681]
[1718338466747,0.668,3494.4,3494.2,1.17592836]
[1718338466915,0.668,3494.4,3494.3,0.2065681]
[1718338467312,0.668,3494.4,3494.2,1.17592836]
[1718338467644,0.668,3494.4,3494.3,0.2065681]
[1718338467945,0.668,3494.4,3494.2,1.17592836]
[1718338468139,0.668,3494.4,3494.3,0.2065681]
[1718338468441,0.668,3494.4,3494.2,1.17592836]
[1718338468606,0.668,3494.4,3494.3,0.2065681]
[1718338468807,0.668,3494.4,3494.2,1.17592836]
[1718338469008,0.668,3494.4,3494.3,0.2065681]
[1718338469413,0.668,3494.4,3494.2,1.17592836]
[1718338469657,0.668,3494.4,3494.3,0.2065681]
[1718338469815,0.668,3494.4,3494.2,1.17592836]
[1718338470137,0.668,3494.4,3494.3,0.2065681]
[1718338470815,0.668,3494.4,3494.2,1.17592836]
[1718338471147,0.668,3494.4,3494.3,0.2065681]
[1718338471510,0.668,3494.4,3494.2,1.17592836]
[1718338471714,0.668,3494.4,3494.3,0.2065681]
[1718338472228,0.668,3494.4,3494.3,0.206642]
[1718338472423,0.668,3494.4,3494.2,1.17592836]
[1718338472644,0.668,3494.4,3494.3,0.206642]
[1718338472853,0.668,3494.4,3494.2,1.17592836]
[1718338473031,0.668,3494.4,3494.3,0.206642]
[1718338473239,0.668,3494.4,3494.2,1.17592836]
[1718338473528,0.668,3494.4,3494.3,0.206642]
[1718338473929,0.668,3494.4,3494.2,1.17592836]
[1718338474150,0.668,3494.4,3494.3,0.206642]
[1718338474814,0.668,3494.4,3494.2,1.17592836]
[1718338475020,0.668,3494.4,3494.3,0.206642]
[1718338475422,0.668,3494.4,3494.2,1.17592836]
[1718338475649,0.668,3494.4,3494.3,0.206642]
[1718338475952,0.668,3494.4,3494.2,1.17592836]
[1718338476251,0.668,3494.4,3494.3,0.206642]
[1718338476457,0.668,3494.4,3494.2,1.17592836]
[1718338476651,0.668,3494.4,3494.3,0.206642]
[1718338476955,0.668,3494.4,3494.2,1.17592836]
[1718338477154,0.668,3494.4,3494.3,0.206642]
[1718338477525,0.668,3494.4,3494.2,1.17592836]
[1718338477719,0.668,3494.4,3494.3,0.206642]
[1718338478147,0.668,3494.4,3494.2,1.17592836]
[1718338478352,0.668,3494.4,3494.3,0.206642]
[1718338478523,3.0,3494.8,3494.3,0.206642]
[1718338478723,0.668,3494.5,3494.2,1.17592836]
[1718338479026,3.0,3494.8,3494.3,2.491142]
[1718338479435,0.668,3494.9,3494.3,2.491142]
[1718338480308,3.0,3495.1,3494.4,1.49067505]
[1718338480431,0.668,3495.0,3494.5,2.98237454]
[1718338480755,3.0,3495.1,3494.5,3.1889047]
[1718338484048,3.0,3495.1,3494.6,2.2656]
[1718338484245,3.668,3495.1,3494.6,2.2656]
[1718338484438,3.668,3495.1,3494.7,0.20609555]
[1718338485367,3.668,3495.1,3494.7,0.64818707]
[1718338485571,7.442,3495.2,3494.8,1.49066774]
[1718338485770,7.442,3495.2,3494.9,2.4264]
[1718338485973,7.442,3495.2,3494.9,2.63233319]
[1718338486333,7.442,3495.2,3495.1,2.259]
[1718338486628,7.442,3495.2,3495.1,2.85465922]
[1718338488391,7.442,3495.2,3495.1,4.28810436]
[1718338489302,3.0,3495.7,3495.1,4.28810436]
[1718338489599,3.0,3495.6,3495.2,0.05721468]
[1718338489768,3.0,3495.8,3495.3,0.2057096]
[1718338489975,3.0,3495.8,3495.2,0.55854658]
[1718338490299,3.0,3495.8,3495.3,0.2057096]
[1718338490794,3.0,3495.8,3495.2,0.55854658]
[1718338491100,3.0,3495.8,3495.3,0.2057096]
[1718338491494,3.0,3495.8,3495.2,0.55854658]
[1718338491665,3.0,3495.8,3495.3,0.42509917]
[1718338492598,0.668,3495.7,3495.3,0.42509917]
[1718338492773,3.0,3495.8,3495.4,0.20539324]
[1718338492977,3.668,3495.8,3495.2,0.05721468]
[1718338493195,3.668,3495.8,3495.3,0.20544913]
[1718338493401,3.668,3495.8,3495.2,0.05721468]
[1718338493565,3.668,3495.8,3495.3,0.20544913]
[1718338493770,3.668,3495.8,3495.2,0.49898066]
[1718338494104,3.668,3495.8,3495.3,0.20544913]
[1718338494487,3.668,3495.8,3495.2,0.49898066]
[1718338495002,3.668,3495.8,3495.3,0.20544913]
[1718338495298,3.668,3495.8,3495.2,0.49898066]
[1718338495691,3.668,3495.8,3495.3,0.20544913]
[1718338496093,3.668,3495.8,3495.2,0.05721468]
[1718338496524,3.668,3495.8,3495.3,0.20544913]
[1718338496929,3.668,3495.8,3495.2,0.05721468]
[1718338497427,3.668,3495.8,3495.3,0.20544913]
[1718338497928,3.668,3495.8,3495.2,0.05721468]
[1718338498320,3.668,3495.8,3495.3,0.20544913]
[1718338498633,3.668,3495.8,3495.2,0.05721468]
[1718338498937,3.0,3495.8,3495.2,0.05721468]
[1718338499103,3.0,3495.8,3495.3,0.20544913]
[1718338499496,3.0,3495.8,3495.2,0.05721468]
[1718338499895,3.0,3495.8,3495.3,0.20544913]
[1718338500214,3.0,3495.8,3495.2,0.05721468]
[1718338500419,3.0,3495.8,3495.3,0.20544913]
[1718338500615,3.0,3495.8,3495.2,0.05721468]
[1718338500820,3.0,3495.8,3495.3,0.20544913]
[1718338501022,3.0,3495.8,3495.2,0.05721468]
[1718338501218,3.0,3495.8,3495.3,0.20544913]
[1718338501401,3.0,3495.8,3495.2,0.05721468]
[1718338501737,3.0,3495.8,3495.3,0.20544913]
[1718338502033,3.0,3495.8,3495.2,0.05721468]
[1718338502328,3.0,3495.8,3495.3,2.2559]
[1718338502534,3.0,3495.8,3495.3,2.46106089]
[1718338502718,3.0,3495.8,3495.3,2.2559]
[1718338503146,7.442,3495.9,3495.5,3.0189]
[1718338503447,7.442,3495.9,3495.7,0.668]
[1718338503652,7.442,3495.9,3495.7,2.10144514]
[1718338503809,7.442,3495.9,3495.8,2.65410934]
[1718338504001,0.668,3496.4,3495.5,2.4511]
[1718338504196,0.668,3496.2,3495.5,3.88454514]
[1718338504433,0.668,3496.2,3495.6,0.20470944]
[1718338507415,0.668,3496.2,3495.6,0.26191776]
[1718338507616,3.0,3496.4,3495.6,0.26191776]
[1718338507829,0.668,3496.4,3495.6,0.05720832]
[1718338508136,3.668,3496.4,3495.6,0.51818367]
[1718338513416,3.668,3496.4,3495.7,0.20465356]
[1718338515458,3.0,3496.4,3495.7,0.20465356]
[1718338516864,3.0,3496.4,3495.8,2.34100826]
[1718338517016,3.0,3496.5,3496.0,2.2838]
[1718338517223,3.0,3496.5,3496.1,0.20423187]
[1718338517521,3.0,3496.5,3496.0,3.71724514]
[1718338521930,3.0,3496.5,3496.1,0.0572013]
[1718338522160,3.0,3496.5,3496.2,0.49532547]
[1718338522654,7.442,3496.6,3496.2,0.49532547]
[1718338522856,3.0,3496.9,3496.2,0.49532547]
[1718338523161,3.0,3496.8,3496.3,3.1658]
[1718338523324,3.0,3497.0,3496.3,3.1658]
[1718338523840,3.0,3497.0,3496.3,2.4978]
[1718338526263,3.0,3497.0,3496.3,2.94045706]
[1718338526464,3.0,3497.0,3496.4,3.0865]
[1718338526775,3.0,3497.0,3496.4,3.29001256]
[1718338526953,3.0,3497.0,3496.4,3.0865]
[1718338527149,3.0,3497.0,3496.5,0.2034567]
[1718338527478,3.0,3497.0,3496.6,0.20340085]
[1718338527967,3.0,3497.0,3496.4,2.4185]
[1718338528173,3.0,3497.0,3496.7,0.203345]
[1718338528384,3.0,3497.0,3496.4,2.4185]
[1718338528536,3.0,3497.0,3496.8,0.20328916]
[1718338528735,3.0,3497.0,3496.4,2.4185]
[1718338528965,3.0,3497.0,3496.9,0.20323332]
[1718338529174,3.0,3497.0,3496.4,2.4185]
[1718338529471,0.668,3497.2,3496.4,2.4185]
[1718338529659,0.668,3497.2,3496.5,0.2034567]
[1718338529861,0.668,3497.2,3496.4,2.4185]
[1718338530064,0.668,3497.2,3496.4,2.72715]
[1718338532673,3.0,3497.3,3496.4,2.72715]
[1718338532885,0.668,3497.3,3496.4,2.72715]
[1718338533092,3.668,3497.3,3496.4,2.72715]
[1718338534284,3.0,3497.3,3496.4,2.72715]
[1718338534458,0.668,3497.3,3496.5,0.272715]
[1718338534659,3.668,3497.3,3496.5,0.272715]
[1718338535105,3.668,3497.3,3496.4,2.4185]
[1718338535685,3.668,3497.3,3496.1,2.4845]
[1718338536005,3.0,3497.4,3496.7,2.4845]
[1718338536298,3.0,3497.4,3496.8,0.20319979]
[1718338536473,3.0,3497.4,3496.9,2.3366]
[1718338541405,3.0,3497.4,3496.9,3.77004514]
[1718338541567,3.0,3497.4,3496.9,4.43804514]
[1718338542813,3.0,3497.4,3496.9,3.77004514]
[1718338544207,3.0,3497.4,3496.8,0.23046449]
[1718338544427,0.668,3497.3,3496.6,2.3105]
[1718338544605,0.668,3497.3,3496.6,3.74394514]
[1718338544942,0.668,3496.9,3496.7,0.20299541]
[1718338545295,0.668,3496.9,3496.2,2.3105]
[1718338545641,0.668,3496.9,3496.3,1.8676829]
[1718338548444,0.668,3496.9,3496.3,0.20318776]
[1718338548596,0.668,3496.7,3496.0,2.3879]
[1718338548923,0.668,3496.7,3496.1,1.63691941]
[1718338553234,3.0,3496.9,3496.2,2.2605]
[1718338553537,3.0,3496.9,3496.3,0.20336254]
[1718338557172,3.1474,3496.8,3496.3,0.20336254]
[1718338557338,4.2584,3496.8,3496.3,0.20336254]
[1718338557539,4.2584,3496.8,3496.0,2.3452]
[1718338557848,3.1474,3496.8,3496.0,2.3452]
[1718338558160,3.1474,3496.8,3496.1,0.20366849]
[1718338558524,0.668,3496.6,3496.1,0.20366849]
[1718338558755,0.668,3496.4,3496.1,0.20366849]
[1718338558963,0.668,3496.4,3495.7,2.2643]
[1718338559173,0.668,3496.4,3495.8,0.22643]
[1718338559322,0.668,3496.4,3495.8,0.4302661]
[1718338562420,0.668,3496.4,3495.8,0.2038361]
[1718338562625,0.668,3496.4,3495.4,2.4635]
[1718338562957,0.668,3496.4,3495.5,0.20400374]
[1718338563870,3.0,3496.7,3495.5,0.20400374]
[1718338564073,0.668,3496.4,3495.5,0.20400374]
[1718338564268,0.668,3496.4,3495.6,0.47689489]
[1718338564459,0.668,3496.4,3495.7,0.20389197]
[1718338564985,3.0,3496.7,3495.9,2.2814]
[1718338565152,0.668,3496.8,3495.9,2.2814]
[1718338565352,0.668,3496.8,3496.0,0.66256512]
[1718338565684,0.668,3496.8,3496.0,0.20389141]
[1718338566660,3.0,3496.9,3496.0,0.2610947]
[1718338566861,0.668,3496.8,3496.0,0.2610947]
[1718338568447,0.668,3496.8,3496.0,0.20389141]
[1718338569395,0.668,3496.8,3496.0,0.26109345]
[1718338569578,0.668,3496.8,3496.1,0.46439386]
[1718338569986,0.668,3496.8,3496.2,0.20368642]
[1718338572595,0.668,3496.6,3496.2,0.20368642]
[1718338583695,0.668,3496.6,3496.3,2.2638]
[1718338583899,0.668,3496.6,3496.4,0.20355527]
[1718338584416,0.668,3496.8,3496.4,0.20355527]
[1718338589518,3.668,3496.9,3496.4,0.4502908]
[1718338590828,3.0,3496.9,3496.4,0.4502908]
[1718338592435,3.0,3496.9,3496.4,0.50749001]
[1718338592635,7.442,3497.0,3496.5,2.32079367]
[1718338592936,7.442,3497.0,3496.6,0.20332315]
[1718338593087,7.442,3497.0,3496.7,2.3925]
[1718338593305,3.0,3497.3,3496.8,0.20321146]
[1718338593646,7.442,3497.4,3496.9,2.4552]
[1718338594009,7.442,3497.4,3497.0,0.20309978]
[1718338596114,7.442,3497.4,3497.1,2.333]
[1718338596546,7.442,3497.4,3497.2,0.20298811]
[1718338597011,7.442,3497.4,3497.1,2.333]
[1718338597210,7.442,3497.4,3497.3,0.20293228]
[1718338597742,10.442,3497.7,3497.2,0.2333]
[1718338597947,3.0,3497.7,3497.2,0.2333]
[1718338598146,3.0,3497.6,3497.3,0.20293228]
[1718338598308,0.668,3497.8,3497.2,0.2333]
[1718338600734,3.0,3497.9,3496.8,2.52407115]
[1718338600735,0.668,3497.4,3496.8,2.52407115]
[1718338600970,0.668,3497.2,3496.8,2.2645]
[1718338606568,0.668,3497.2,3496.9,0.20288375]
[1718338606754,0.668,3497.2,3496.5,2.3317]
[1718338606950,0.668,3497.2,3497.0,0.20282791]
[1718338607181,0.668,3497.2,3496.6,1.43344514]
[1718338607365,0.668,3497.2,3497.1,0.20277208]
[1718338607666,0.668,3497.2,3496.7,0.37651451]
[1718338607867,0.668,3497.2,3497.1,0.20277208]
[1718338608055,0.668,3497.2,3496.5,2.3317]
[1718338608257,0.668,3497.2,3497.1,0.20277208]
[1718338608480,0.668,3497.2,3496.5,3.76514514]
[1718338608657,3.0708,3497.0,3495.8,2.2622]
[1718338608854,0.668,3496.8,3496.6,0.20305128]
[1718338609079,0.668,3496.7,3495.9,1.43344514]
[1718338609458,0.668,3496.7,3496.0,0.20335536]
[1718338609663,0.668,3496.7,3496.0,1.6368005]
[1718338609871,0.668,3496.7,3496.1,0.38990005]
[1718338610290,0.668,3496.7,3496.2,0.20324363]
[1718338612573,0.668,3496.5,3496.2,0.20324363]
[1718338613004,0.668,3496.5,3495.8,2.2622]
[1718338613163,0.668,3496.5,3496.3,0.20353344]
[1718338613366,0.668,3496.5,3495.9,1.43344514]
[1718338613566,0.668,3496.5,3496.4,0.20347758]
[1718338613807,0.668,3496.5,3495.6,0.47689489]
[1718338613808,0.668,3496.5,3495.2,2.3216]
[1718338614005,3.0,3496.9,3495.3,1.43344514]
[1718338614006,0.668,3496.2,3495.3,1.43344514]
[1718338614386,0.668,3496.2,3495.4,2.9896]
[1718338614585,0.668,3496.2,3495.5,1.43344514]
[1718338614789,0.668,3496.2,3495.6,0.44230451]
[1718338620395,3.0,3496.3,3495.6,0.44230451]
[1718338620737,0.668,3496.1,3495.6,0.44230451]
[1718338621687,0.668,3496.1,3495.7,0.20416002]
[1718338622724,3.0,3496.3,3495.7,0.20416002]
[1718338623032,0.668,3496.2,3495.7,0.20416002]
[1718338623528,0.668,3496.0,3495.7,0.20416002]
[1718338624129,0.668,3496.0,3495.5,1.43344514]
[1718338624300,0.668,3496.0,3495.8,0.20427511]
[1718338624501,0.668,3496.0,3495.5,1.43344514]
[1718338625039,0.668,3496.0,3495.6,0.20438686]
[1718338626631,3.0,3496.3,3495.6,0.20438686]
[1718338626926,0.668,3496.1,3495.5,1.43344514]
[1718338627105,0.668,3496.1,3495.6,0.37550451]
[1718338627305,0.668,3496.1,3495.6,0.57989137]
[1718338629299,0.668,3496.1,3495.6,0.20438686]
[1718338629794,3.0,3496.3,3495.4,2.3216]
[1718338630034,0.668,3496.0,3495.4,3.75504514]
[1718338630242,0.668,3496.0,3495.5,0.20444663]
[1718338633502,0.668,3495.8,3495.5,0.20444663]
[1718338633702,0.668,3495.8,3495.4,2.3216]
[1718338634013,0.668,3495.8,3495.5,0.20445441]
[1718338634698,0.668,3495.8,3495.2,2.3499]
[1718338634898,0.668,3495.8,3495.6,0.20439852]
[1718338635142,0.668,3495.8,3495.3,1.43344514]
[1718338635436,0.668,3495.8,3495.3,1.81177965]
[1718338635740,0.668,3495.8,3495.4,0.20451029]
[1718338636640,3.0488,3496.0,3495.4,0.20451029]
[1718338637916,0.668,3495.8,3495.4,0.20451029]
[1718338639631,0.668,3495.9,3495.4,0.20451029]
[1718338639837,0.668,3495.9,3495.4,0.64112928]
[1718338642507,0.668,3495.7,3495.4,0.20451029]
[1718338642951,0.668,3495.7,3495.2,2.3499]
[1718338643145,0.668,3495.7,3495.5,0.20452824]
[1718338643314,0.668,3495.7,3495.2,3.78334514]
[1718338643651,0.668,3495.7,3495.2,4.16167965]
[1718338643810,0.668,3495.7,3495.3,0.20464001]
[1718338644144,0.668,3495.7,3495.2,4.16167965]
[1718338644448,0.668,3495.7,3495.3,0.20464001]
[1718338644820,0.668,3495.7,3495.2,4.16167965]
[1718338645044,0.668,3495.7,3495.4,0.20469683]
[1718338645341,0.668,3495.7,3495.2,4.16167965]
[1718338645544,0.668,3495.7,3495.5,0.20464094]
[1718338645713,0.668,3495.7,3495.3,0.41616797]
[1718338645915,0.668,3495.7,3495.6,0.20458506]
[1718338646437,0.668,3495.7,3495.2,3.78334514]
[1718338646636,0.668,3495.7,3495.6,0.20458506]
[1718338646837,0.668,3495.7,3495.2,3.78334514]
[1718338647143,0.668,3495.7,3495.6,0.20458506]
[1718338647344,0.668,3495.7,3495.2,3.78334514]
[1718338647548,0.668,3495.7,3495.6,0.20458506]
[1718338647849,0.668,3495.7,3495.2,3.78334514]
[1718338648022,0.668,3495.7,3495.6,0.20458506]
[1718338648223,0.668,3495.7,3495.2,3.78334514]
[1718338648425,0.668,3495.7,3495.6,0.20458506]
[1718338648625,3.0731,3495.7,3494.9,2.3373]
[1718338648927,0.668,3495.5,3494.9,3.77074514]
[1718338649135,0.668,3495.5,3494.9,4.19258124]
[1718338649844,0.668,3495.5,3494.9,1.85528124]
[1718338650830,2.2713,3496.0,3495.1,2.3521]
[1718338651138,0.668,3495.8,3495.1,2.3521]
[1718338651310,0.668,3495.8,3495.2,0.42073812]
[1718338651812,0.668,3495.8,3495.3,0.20481879]
[1718338652249,0.668,3495.8,3495.2,0.42073812]
[1718338652444,0.668,3495.8,3495.4,0.2047629]
[1718338652745,0.668,3495.8,3495.3,0.20481879]
[1718338652949,0.668,3495.8,3495.5,0.20470701]
[1718338653158,0.668,3495.8,3495.4,0.2047629]
[1718338653470,0.668,3495.8,3495.5,0.20470701]
[1718338653917,0.668,3495.8,3495.1,2.3521]
[1718338654225,0.668,3495.8,3495.2,0.42073812]
[1718338654544,0.668,3495.8,3495.2,0.6256128]
[1718338662347,0.668,3495.6,3495.2,0.20487468]
[1718338662548,2.3604,3495.5,3494.9,1.43344514]
[1718338662967,2.3604,3495.5,3495.0,0.20500204]
[1718338667054,2.3604,3495.5,3495.0,0.26222021]
[1718338667257,0.668,3495.5,3495.1,0.40672653]
[1718338667639,0.668,3495.5,3495.2,0.20489025]
[1718338668496,0.668,3495.5,3495.3,0.20483436]
[1718338668844,0.668,3495.5,3494.9,1.43344514]
[1718338669056,0.668,3495.5,3495.4,0.20477847]
[1718338669342,0.668,3495.5,3494.9,1.43344514]
[1718338669887,0.668,3495.5,3495.0,0.20500204]
[1718338670767,0.668,3495.3,3495.0,0.20500204]
[1718338670995,0.668,3495.3,3494.8,2.3716]
[1718338671284,0.668,3495.3,3494.9,0.48697954]
[1718338674386,0.668,3495.3,3494.9,0.20505795]
[1718338674591,0.668,3495.1,3494.9,0.20505795]
[1718338674962,0.668,3495.1,3494.6,0.44761589]
[1718338675211,2.3796,3495.1,3494.2,1.17592836]
[1718338675358,2.3796,3495.1,3494.3,0.20568885]
[1718338675359,0.668,3494.8,3494.3,0.20568885]
[1718338675567,0.668,3494.8,3494.3,0.38355172]
[1718338675963,0.668,3494.8,3494.4,0.20563293]
[1718338678797,0.668,3494.8,3494.5,0.20557701]
[1718338678998,0.668,3494.8,3494.2,1.17592836]
[1718338679404,0.668,3494.8,3494.3,0.20568885]
[1718338679764,0.668,3494.8,3494.2,1.17592836]
[1718338679965,0.668,3494.8,3494.3,0.20568885]
[1718338680182,0.668,3494.8,3494.2,1.6057112]
[1718338680499,0.668,3494.8,3494.3,0.20568885]
[1718338680707,0.668,3494.8,3494.2,1.6057112]
[1718338680899,0.668,3494.8,3494.4,0.20563293]
[1718338681209,0.668,3494.8,3494.5,0.20557701]
[1718338681411,0.668,3494.9,3494.2,1.6057112]
[1718338681598,0.668,3494.9,3494.3,0.20568885]
[1718338683207,3.0,3495.0,3494.3,2.12289605]
[1718338683407,0.668,3495.0,3494.3,2.12289605]
[1718338683594,3.668,3495.0,3494.3,2.12289605]
[1718338690315,7.442,3495.2,3494.5,2.3199]
[1718338690488,7.442,3495.2,3494.6,3.97596609]
[1718338690686,7.442,3495.2,3494.7,0.48498245]
[1718338690874,7.442,3495.2,3494.8,1.4906661]
[1718338691074,7.442,3495.2,3494.8,1.69630087]
[1718338691591,3.668,3495.5,3494.8,1.69630087]
[1718338693715,3.0,3495.5,3494.8,1.69630087]
[1718338693900,0.668,3495.5,3494.9,0.46665833]
[1718338694100,3.668,3495.5,3494.9,0.52387884]
[1718338694316,3.668,3495.5,3494.9,0.46665833]
[1718338694475,3.0,3495.5,3494.9,0.46665833]
[1718338694681,0.668,3495.5,3495.0,0.2053519]
[1718338694893,3.0,3495.5,3495.0,0.2053519]
[1718338695090,0.668,3495.4,3495.0,0.2053519]
[1718338697211,3.0,3495.5,3495.0,0.2053519]
[1718338697416,0.668,3495.4,3495.0,0.2053519]
[1718338699539,0.668,3495.4,3494.8,1.43344514]
[1718338700017,0.668,3495.4,3494.9,0.20540391]
[1718338702439,3.0,3495.5,3495.0,2.4104]
[1718338702743,3.668,3495.6,3495.0,2.61574801]
[1718338704020,0.668,3495.4,3495.0,2.61574801]
[1718338704542,0.668,3495.2,3495.0,0.20534801]
[1718338704899,0.668,3495.2,3494.5,2.3585]
[1718338705141,0.668,3495.2,3495.1,0.20529211]
[1718338705344,0.668,3495.2,3494.6,1.43344514]
[1718338705517,0.668,3495.2,3495.1,0.20529211]
[1718338705715,0.668,3495.2,3494.6,1.43344514]
[1718338706116,0.668,3495.2,3494.7,0.20551573]
[1718338706541,2.388,3495.3,3494.7,0.20551573]
[1718338706760,0.668,3495.2,3494.7,0.20551573]
[1718338711504,0.668,3495.0,3494.7,0.20551573]
[1718338719642,2.388,3495.3,3494.7,0.20551573]
[1718338719843,0.668,3495.1,3494.7,0.20551573]
[1718338720032,0.668,3495.1,3494.7,0.60526182]
[1718338720349,0.668,3495.3,3494.8,2.334]
[1718338720520,0.668,3495.3,3494.8,2.53957255]
[1718338729462,0.668,3495.3,3494.8,0.20557255]
[1718338729768,0.668,3494.9,3494.3,2.4052]
[1718338729934,0.668,3494.9,3494.3,3.83864514]
[1718338734774,0.668,3494.5,3494.2,1.17592836]
[1718338735074,3.0,3495.0,3494.2,1.17592836]
[1718338735075,0.668,3494.3,3494.2,1.17592836]
[1718338736345,2.2991,3494.6,3494.2,1.17592836]
[1718338736561,0.668,3494.3,3494.2,1.17592836]
[1718338738481,3.1405,3494.3,3494.2,1.17592836]
[1718338740171,6.1405,3494.3,3494.2,1.17592836]
[1718338740477,6.75455,3494.3,3494.2,1.17592836]
[1718338741861,7.30455,3494.3,3494.2,1.17592836]
[1718338744242,7.30455,3494.3,3494.2,1.17592836]
[1718338744938,6.63655,3494.3,3494.2,0.50165421]
[1718338745176,7.30455,3494.3,3494.2,0.50165421]
[1718338745575,6.63655,3494.3,3494.2,0.50165421]
[1718338745735,7.30455,3494.3,3494.2,0.50165421]
[1718338753098,6.63655,3494.3,3494.2,0.50165421]
[1718338753305,7.30455,3494.3,3494.2,0.50165421]
[1718338762464,8.73799514,3494.3,3494.2,0.50165421]
[1718338765246,7.30455,3494.3,3494.2,0.50165421]
[1718338770566,4.16405,3494.3,3494.2,0.50165421]
[1718338770750,0.61405,3494.3,3494.2,0.50165421]
[1718338770954,4.28205,3494.3,3494.2,0.50165421]
[1718338771432,1.28205,3494.3,3494.2,0.50165421]
[1718338771937,1.83205,3494.3,3494.2,0.50165421]
[1718338779055,1.16405,3494.3,3494.2,0.50165421]
[1718338779250,1.83205,3494.3,3494.2,0.50165421]
[1718338780437,4.24405,3494.3,3494.2,0.50165421]
[1718338780635,7.24405,3494.3,3494.2,0.50165421]
[1718338781377,7.73902901,3494.3,3494.2,0.50165421]
[1718338781575,7.24405,3494.3,3494.2,0.50165421]
[1718338781952,8.67749514,3494.3,3494.2,0.50165421]
[1718338782148,9.17248947,3494.3,3494.2,0.50165421]
[1718338787477,9.17248762,3494.3,3494.2,0.50165421]
[1718338790581,9.17248762,3494.3,3493.2,2.334]
[1718338790754,0.668,3493.3,3493.2,2.334]
[1718338794587,0.668,3493.3,3492.2,2.4615]
[1718338794789,0.668,3493.0,3492.4,2.3255]
[1718338794988,0.668,3493.0,3492.5,1.43344514]
[1718338795143,0.668,3493.0,3492.6,2.46884451]
[1718338796262,0.668,3493.1,3492.6,2.46884451]
[1718338800397,3.0,3493.7,3492.6,2.46884451]
[1718338800695,0.668,3493.2,3492.6,2.46884451]
[1718338801703,0.668,3493.2,3492.8,2.3949]
[1718338801865,0.668,3493.2,3493.0,2.3949]
[1718338802301,3.0,3493.7,3493.1,0.19902077]
[1718338802600,0.668,3493.2,3493.0,2.3949]
[1718338806603,0.55,3493.6,3493.0,2.3949]
[1718338806905,0.668,3493.2,3493.0,2.3949]
[1718338815002,0.668,3493.2,3492.7,2.2789]
[1718338815932,0.668,3492.8,3492.7,2.2789]
[1718338816498,0.668,3492.8,3492.2,2.4865]
[1718338816810,3.0,3493.4,3492.2,2.94376535]
[1718338816811,0.668,3492.6,3492.2,2.94376535]
[1718338817020,0.668,3492.6,3492.3,0.1995152]
[1718338817193,0.668,3492.6,3492.2,2.94376535]
[1718338817395,0.668,3492.6,3492.3,0.1995152]
[1718338817634,0.668,3492.6,3492.2,2.94376535]
[1718338817930,0.668,3492.6,3492.4,0.19945921]
[1718338818108,0.668,3492.6,3492.3,0.1995152]
[1718338818304,0.668,3492.6,3492.5,0.19940323]
[1718338818520,0.668,3492.6,3492.4,0.19945921]
[1718338818746,0.668,3492.6,3492.5,0.19940323]
[1718338819095,0.668,3492.6,3492.2,2.94376535]
[1718338819294,0.668,3492.6,3492.5,0.19940323]
[1718338819496,0.668,3492.6,3492.2,2.94376535]
[1718338819696,0.668,3492.6,3492.5,0.19940323]
[1718338820348,0.668,3492.6,3492.2,2.94376535]
[1718338820937,0.668,3492.6,3492.3,0.1995152]
[1718338821313,0.668,3492.6,3492.2,2.94376535]
[1718338821629,0.668,3492.6,3492.3,0.1995152]
[1718338821802,0.668,3492.6,3492.2,2.94376535]
[1718338822002,0.668,3492.6,3492.3,0.1995152]
[1718338822210,0.668,3492.6,3492.2,2.94376535]
[1718338822417,0.668,3492.6,3492.3,0.1995152]
[1718338822636,0.668,3492.6,3492.2,2.94376535]
[1718338822800,0.668,3492.6,3492.3,0.1995152]
[1718338823003,0.668,3492.6,3492.2,2.94376535]
[1718338823217,0.668,3492.6,3492.3,0.1995152]
[1718338823456,0.668,3492.6,3492.2,2.94376535]
[1718338823640,0.668,3492.6,3492.3,0.1995152]
[1718338823822,0.668,3492.6,3492.2,2.94376535]
[1718338824017,0.668,3492.6,3492.4,0.19945921]
[1718338824221,0.668,3492.6,3492.2,2.94376535]
[1718338824408,0.668,3492.6,3492.5,0.19940323]
[1718338824609,0.668,3492.6,3492.2,2.4865]
[1718338824853,0.668,3492.6,3492.5,0.19940323]
[1718338825016,0.668,3492.6,3492.2,2.4865]
[1718338825221,0.668,3492.6,3492.5,0.19940323]
[1718338825422,0.668,3492.6,3492.2,2.4865]
[1718338825628,0.668,3492.4,3492.3,0.1995152]
[1718338825825,0.668,3492.4,3492.1,2.08615346]
[1718338826120,0.668,3492.4,3492.3,0.1995152]
[1718338826327,0.668,3492.4,3492.2,0.19957119]
[1718338826538,0.668,3492.4,3492.1,2.08615346]
[1718338826539,0.668,3492.4,3492.3,0.1995152]
[1718338826910,0.668,3492.4,3492.1,2.08615346]
[1718338827111,0.668,3492.4,3492.3,0.1995152]
[1718338827348,0.668,3492.4,3492.2,0.19957119]
[1718338827649,0.668,3492.4,3492.3,0.1995152]
[1718338827832,2.2919,3492.7,3492.1,2.08615346]
[1718338828041,0.668,3492.4,3492.2,0.19980439]
[1718338828243,5.2919,3492.9,3492.2,0.19980439]
[1718338828420,5.2919,3492.9,3492.3,2.3279]
[1718338828421,0.668,3492.5,3492.3,2.3279]
[1718338828743,0.668,3492.5,3492.2,0.19980439]